[Event "24th Hoogeschool Zeeland 2022"]
[Site "Vlissingen"]
[Date "2022.08.08"]
[Round "4.6"]
[White "Schoppen, Casper"]
[Black "Klepke, Ricardo"]
[Result "1/2-1/2"]
[ECO "A44"]
[WhiteElo "2507"]
[BlackElo "2293"]
[Annotator "TA"]
[PlyCount "144"]
[EventDate "2022.08.05"]
[EventType "swiss"]
[EventCountry "NED"]
[SourceTitle "playchess.com"]
[Source "ChessBase"]
[SourceQuality "1"]
[TimeControl "40/5400+30:1800+30"]

{[%evp 10,144,78,28,25,27,18,14,20,18,25,0,23,20,31,29,31,25,16,28,14,20,23,11,15,15,31,4,60,53,45,29,73,48,54,53,36,61,63,50,52,43,55,66,51,20,20,28,21,36,18,0,0,0,0,0,0,0,0,0,0,0,0,0,0,-325,-325,-324,-313,-327,-308,-428,-425,-465,-428,-514,-493,-645,-640,-779,-718,-491,-166,-580,-8,-1174,-1170,-1002,-713,-1000,-860,-626,-8,-8,-8,-8,-8,-8,-8,-8,-8,-8,-8,-8,-8,-14,-8,-36,-48,-129,-70,-95,-8,-1156,-954,-348,0,0,0,0,0,0,0,0,0,0,0,0,0,0,0,0,0,0,0,0,0]} 1. d4 {[%emt 0:00:05]} c5 {[%emt 0:00:05]} 2. d5 {[%emt 0:00:09]} e5 {[%emt 0:00:05]} 3. e4 {[%emt 0:00:24]} d6 {[%emt 0:00:11]} 4. Nc3 {[%emt 0:08:23]} Be7 {[%emt 0:00:19]} 5. Bb5+ {[%emt 0:01:36]} Nd7 {[%emt 0:01:44]} 6. f4 {[%emt 0:09:28]} (6. a4 $16) 6... exf4 {[%emt 0:10:40] A44: Semi-Benoni.} 7. Bxf4 {[%emt 0:00:58]} Ngf6 {[%emt 0:01:20][%cal Bg8f6,Bf6d7,Bd7e5][%mdl 32]} 8. Nf3 {[%emt 0:02:32]} O-O {[%emt 0:02:04]} 9. O-O {[%emt 0:07:08]} a6 {[%emt 0:06:25]} 10. Bxd7 {[%emt 0:02:35]} Nxd7 {[%emt 0:00:59]} 11. a4 {[%emt 0:05:12]} b6 {[%emt 0:21:48] [#]} 12. Qe1 $146 {[%emt 0:14:28]} ({Predecessor:} 12. Qd3 Qc7 13. Nd2 Rd8 14. Nc4 f6 15. Qg3 Nf8 16. h4 Ng6 17. Bd2 Ne5 18. Nxe5 dxe5 {1-0 (27) Arutinian,D (2561)-Chigladze,I (2390) Tbilisi 2012}) 12... f6 {[%emt 0:01:14]} 13. Qg3 {[%emt 0:05:09]} Ne5 {[%emt 0:02:01]} 14. Nh4 {[%emt 0:00:56]} Kh8 {[%emt 0:09:50] aiming for ...g5.} 15. Nf5 {[%emt 0:00:38][%csl Gf5][%cal Rg3g7]} Rf7 {[%emt 0:03:39]} 16. h4 {[%emt 0:03:37][%cal Bh2h4,Bh4h5,Bh5h6][%mdl 32]} Bf8 {[%emt 0:03:05]} 17. h5 {[%emt 0:01:29]} Bd7 {[%emt 0:02:29]} 18. Nd1 {[%emt 0:04:27]} Be8 {[%emt 0:04:06]} (18... b5 $11) 19. Nde3 $14 {[%emt 0:05:19]} b5 {[%emt 0:05:38]} 20. axb5 {[%emt 0:11:15]} axb5 {[%emt 0:00:58]} 21. Rxa8 {[%emt 0:00:28] 0x0.0002da1bb6b1dp-1022s more active pieces.} Qxa8 {[%emt 0:00:06]} 22. h6 {[%emt 0:01:27]} g6 {[%emt 0:03:23]} 23. Ng7 {[%emt 0:00:23]} Kg8 {[%emt 0:02:02]} 24. Ne6 {[%emt 0:07:30]} Bd7 $1 {[%emt 0:02:31]} 25. Nf5 {[%emt 0:00:49]} Qc8 {[%emt 0:00:52]} 26. Nxf8 {[%emt 0:01:32]} ({Of course not} 26. Bxe5 $6 fxe5 27. Nfg7 Rxf1+ 28. Kxf1 Bxg7 29. Nxg7 Qf8+ 30. Kg1 b4 $11) 26... Qxf8 {[%emt 0:00:18]} 27. Ra1 {[%emt 0:00:48]} Bxf5 {[%emt 0:06:29]} 28. exf5 {[%emt 0:00:02]} g5 {[%emt 0:00:38]} 29. Bxe5 {[%emt 0:01:57]} dxe5 $11 {[%emt 0:00:07][%mdl 4096] Endgame KQR-KQR} 30. Ra6 {[%emt 0:03:24]} Qxh6 {[%emt 0:00:53]} 31. Qg4 {[%emt 0:01:08] Prevents Qh5.} Kg7 {[%emt 0:02:38]} 32. g3 {[%emt 0:00:26]} Kg8 {[%emt 0:02:28]} 33. d6 {[%emt 0:00:06] Strongly threatening Ra8+.} Rd7 {[%emt 0:02:08]} 34. Ra8+ {[%emt 0:01:03]} Kg7 {[%emt 0:00:50]} 35. Ra6 {[%emt 0:00:13]} Kg8 {[%emt 0:00:09]} 36. Ra8+ {[%emt 0:00:45]} Kg7 {[%emt 0:00:07]} 37. Qf3 $2 {[%emt 0:00:33][%mdl 8192]} (37. Ra6 $11 {and White has nothing to worry.}) 37... Qh3 $19 {[%emt 0:00:36]} 38. Ra6 {[%emt 0:00:18]} e4 {[%emt 0:00:49]} 39. Qxe4 {[%emt 0:00:36]} Qxg3+ {[%emt 0:00:06]} 40. Kf1 {[%emt 0:00:12] [#]} Qe5 {[%emt 0:03:02]} 41. Qxe5 {[%emt 0:01:52]} fxe5 {[%emt 0:00:15] KR-KR} 42. Rc6 {[%emt 0:00:11]} Kf6 {[%emt 0:00:30]} 43. Rxc5 {[%emt 0:00:15]} Rxd6 {[%emt 0:00:22]} 44. Rxb5 {[%emt 0:00:06]} Kxf5 {[%emt 0:00:22]} 45. c4 {[%emt 0:05:48]} Ke4 $2 {[%emt 0:04:33]} (45... h5 46. c5 Rd4) 46. b4 $2 {[%emt 0:05:16]} (46. Ke2) 46... g4 $2 {[%emt 0:04:41]} (46... Rd1+ $19 47. Kg2 Rd2+ 48. Kg1 Rc2) 47. Rb7 $2 {[%emt 0:04:53][%mdl 8192]} (47. c5 $11 Ra6 48. Rb6 Ra1+ 49. Kg2) 47... h5 {[%emt 0:02:18]} 48. c5 {[%emt 0:03:02]} Rd1+ {[%emt 0:02:03]} 49. Kf2 {[%emt 0:07:13]} Rc1 {[%emt 0:09:46] And now ...h4 would win.} 50. Rh7 {[%emt 0:00:56] [#]} Rc2+ $2 {[%emt 0:01:14]} (50... Kf4 $1 $19 51. Rxh5 g3+ 52. Kg2 Rc2+ 53. Kg1 e4) 51. Kg3 $1 $11 {[%emt 0:00:06]} Rc3+ {[%emt 0:00:23]} 52. Kg2 {[%emt 0:02:00]} Rc4 {[%emt 0:01:18]} 53. Rxh5 {[%emt 0:00:09]} Rxb4 {[%emt 0:00:10]} 54. Rh6 $1 {[%emt 0:01:13]} Rc4 {[%emt 0:00:28]} 55. c6 {[%emt 0:00:05]} Kf4 {[%emt 0:00:21]} 56. Rf6+ {[%emt 0:00:09]} Kg5 {[%emt 0:00:26]} 57. Rd6 {[%emt 0:01:53]} Rc2+ {[%emt 0:00:14]} 58. Kg3 {[%emt 0:00:03]} Rc3+ {[%emt 0:00:06]} 59. Kf2 {[%emt 0:00:17]} e4 {[%emt 0:01:08]} 60. Kg2 {[%emt 0:02:00]} Kf5 {[%emt 0:00:20]} (60... Kf4 $17 61. Kf1 Rc2) 61. Rh6 $2 {[%emt 0:01:05][%mdl 8192]} (61. Kf2 $11) 61... Kf4 {[%emt 0:03:54]} 62. Rf6+ {[%emt 0:00:13]} Ke3 $2 {[%emt 0:03:19]} ({Black should try} 62... Ke5 $19 63. Rh6 Rc2+ 64. Kf1 e3) 63. Kg3 {[%emt 0:00:27] The position is equal.} Kd2+ {[%emt 0:00:38]} 64. Kxg4 {[%emt 0:00:09]} e3 {[%emt 0:00:12] White must now prevent ...e2.} 65. Rd6+ {[%emt 0:00:21]} Ke1 {[%emt 0:00:23] Hoping for ...e2.} 66. Kf3 $1 {[%emt 0:00:57]} e2+ {[%emt 0:00:16]} 67. Kg2 {[%emt 0:00:05]} Rc5 {[%emt 0:00:24]} 68. Kg1 {[%emt 0:00:56]} Rg5+ {[%emt 0:00:18]} (68... Rc2 $5) 69. Kh2 {[%emt 0:00:01]} Kf2 {[%emt 0:02:14][%cal Rg5h5]} 70. Rf6+ {[%emt 0:00:02]} Ke3 {[%emt 0:00:36] ( -> ...Re5)} 71. Re6+ {[%emt 0:00:05]} Kf2 {[%emt 0:01:07][%cal Rg5h5]} 72. Rf6+ {[%emt 0:00:02]} Ke3 {[%emt 0:01:04] Weighted Error Value: White=0.54/Black=0.47} 1/2-1/2

[Event "24th Hoogeschool Zeeland 2022"]
[Site "Vlissingen"]
[Date "2022.08.08"]
[Round "4.7"]
[White "Matsumura, Cocoro"]
[Black "Ikonnikov, Vyacheslav"]
[Result "0-1"]
[ECO "B31"]
[WhiteElo "2043"]
[BlackElo "2493"]
[Annotator "TA"]
[PlyCount "98"]
[EventDate "2022.08.05"]
[EventType "swiss"]
[EventCountry "NED"]
[SourceTitle "playchess.com"]
[Source "ChessBase"]
[SourceQuality "1"]
[TimeControl "40/5400+30:1800+30"]

{[%evp 10,98,19,0,14,14,23,23,17,16,31,-50,-51,-48,-61,-56,8,7,13,26,6,-31,-15,-18,-20,-29,-29,-28,0,0,0,0,0,-36,-38,-73,-66,-67,-61,-110,-108,-106,-100,-100,-20,-58,-66,-75,-102,-101,-98,-98,-96,-94,-21,-167,-192,-270,-249,-339,-331,-331,-264,-331,-329,-277,-123,-188,-164,-179,-172,-172,-127,-127,-127,-388,-388,-379,-364,-745,-742,-822,-585,-674,-613,-507,-458,-1039,-953,-29985,-29986]} 1. e4 {[%emt 0:00:03]} c5 {[%emt 0:00:13]} 2. Nf3 {[%emt 0:00:09]} Nc6 {[%emt 0:00:07]} 3. Bb5 {[%emt 0:00:09]} g6 {[%emt 0:00:18]} 4. O-O {[%emt 0:00:12]} Bg7 {[%emt 0:00:41]} 5. d3 {[%emt 0:00:14]} Nf6 {[%emt 0:02:24]} 6. Nc3 {[%emt 0:00:17]} Nd4 {[%emt 0:02:07] B31: Sicilian: 2...Nc6 3 Bb5 g6.} 7. e5 {[%emt 0:05:46] Black must now prevent Nxd4.} Ng4 {[%emt 0:00:15]} 8. Nxd4 {[%emt 0:01:12]} cxd4 {[%emt 0:00:07] White has an edge.} 9. Qxg4 {[%emt 0:01:35]} dxc3 {[%emt 0:00:09] [#]} 10. Qe4 $146 {[%emt 0:02:41]} ({Better is} 10. Re1 $14) ({Predecessor:} 10. bxc3 O-O 11. d4 d6 12. Qe2 dxe5 13. dxe5 Qc7 14. Bf4 Qxc3 15. Rad1 Be6 16. Rd3 {0-1 (31) Van den Dikkenberg,E (2158)-Thomas,A (2163) Chess.com INT 2022}) 10... Qb6 $15 {[%emt 0:10:38]} 11. a4 {[%emt 0:03:46]} a6 {[%emt 0:00:15]} 12. Be3 {[%emt 0:03:10]} Qe6 {[%emt 0:00:11]} ({Black should try} 12... Qc7 $15 13. Bc4 (13. Qc4 $2 Qb8 $19) 13... cxb2) 13. Bc4 $36 {[%emt 0:01:02][%mdl 2048] White has some pressure.} Qxe5 {[%emt 0:00:19]} 14. Qxe5 {[%emt 0:03:33]} Bxe5 {[%emt 0:00:07]} 15. b4 {[%emt 0:00:32]} d6 {[%emt 0:05:50]} 16. Bd5 {[%emt 0:12:55]} e6 {[%emt 0:04:20]} 17. Bf3 {[%emt 0:00:47]} Bf6 {[%emt 0:03:38]} 18. Ra3 {[%emt 0:06:45]} Bd7 {[%emt 0:28:03]} 19. Bxb7 {[%emt 0:06:44][%cal Bf3b7,Bb7a6,Ba6b5][%mdl 32]} Rb8 {[%emt 0:00:04]} 20. Bxa6 {[%emt 0:00:10] Threatens to win with Rb1.} Rxb4 {[%emt 0:00:02]} 21. Bb5 {[%emt 0:12:20]} Ke7 {[%emt 0:12:08]} 22. Raa1 {[%emt 0:06:43]} Rb2 {[%emt 0:06:44]} 23. Rfc1 {[%emt 0:09:04]} Ra8 {[%emt 0:00:28]} 24. Kf1 {[%emt 0:06:33]} (24. g4 $15 {deserves consideration.}) 24... Bxb5 $17 {[%emt 0:07:31] Black is more active.} 25. axb5 {[%emt 0:00:36]} Rxa1 {[%emt 0:00:04]} 26. Rxa1 {[%emt 0:00:07]} Rxb5 {[%emt 0:00:01][%mdl 4096] Endgame KRB-KRB} (26... e5 $17 27. Ra7+ Ke6) 27. Ra7+ {[%emt 0:00:42]} Kf8 {[%emt 0:00:05]} 28. Bh6+ {[%emt 0:01:27]} Ke8 {[%emt 0:00:02]} 29. Ra8+ {[%emt 0:00:09]} Kd7 $1 {[%emt 0:01:07]} 30. Ra7+ {[%emt 0:00:23]} Kc6 $1 {[%emt 0:00:23]} 31. Rxf7 {[%emt 0:01:01] [#]} Bd4 {[%emt 0:00:31] aiming for ...Rb2.} 32. Ke2 {[%emt 0:03:11] [#]} (32. Rf4 $1 $11 e5 33. Re4) 32... g5 $1 $19 {[%emt 0:00:59]} (32... Rb2 33. Kd1 $11) 33. Rxh7 {[%emt 0:02:35]} (33. h4 {is a better defense.}) 33... Rb2 {[%emt 0:00:19]} 34. Rf7 {[%emt 0:03:07]} Rxc2+ {[%emt 0:00:06]} 35. Ke1 {[%emt 0:00:04]} Rc1+ {[%emt 0:02:46]} 36. Ke2 {[%emt 0:00:06]} Rg1 {[%emt 0:03:21]} 37. Bxg5 {[%emt 0:00:51]} c2 {[%emt 0:00:24]} (37... Rxg2 $19 {has better winning chances.} 38. h4 Kd5) 38. Rf8 {[%emt 0:00:48]} (38. g3 $17) 38... Kd5 {[%emt 0:01:06]} 39. Rc8 {[%emt 0:01:54]} Bc5 {[%emt 0:00:06]} ({Stronger than} 39... Rxg2 40. Be3 $11) 40. h4 {[%emt 0:02:15]} c1=Q {[%emt 0:00:07]} 41. Bxc1 {[%emt 0:30:06]} Rxc1 $17 {[%emt 0:30:06] KRB-KR} 42. f4 $2 {[%emt 0:00:22][%mdl 8192]} (42. Rf8 $17 {was the only defense.}) 42... Rc2+ $19 {[%emt 0:04:44]} 43. Kf3 {[%emt 0:00:06]} Rd2 {[%emt 0:00:08]} 44. h5 $2 {[%emt 0:01:55]} (44. Ra8) 44... Rxd3+ {[%emt 0:00:22]} 45. Kg4 {[%emt 0:02:08]} Bf2 {[%emt 0:00:08]} 46. h6 {[%emt 0:00:41]} Rg3+ {[%emt 0:00:18]} 47. Kh5 {[%emt 0:00:05]} Rxg2 {[%emt 0:06:43]} 48. Rc2 {[%emt 0:00:57]} (48. h7 $142 Bd4 49. Kh6) 48... Ke4 {[%emt 0:00:06] ( -> ...Kf5)} ({Weaker is} 48... Rh2+ 49. Kg6 $11) 49. h7 {[%emt 0:01:26]} Kf5 {[%emt 0:00:08] Weighted Error Value: White=0.82/Black=0.13 (very precise)} ({Inferior is} 49... Rh2+ 50. Kg6 $11) 0-1

[Event "24th Hoogeschool Zeeland 2022"]
[Site "Vlissingen"]
[Date "2022.08.08"]
[Round "4.8"]
[White "Santiago, Yago De Moura"]
[Black "Zwirs, Jasper"]
[Result "1-0"]
[ECO "E04"]
[WhiteElo "2513"]
[BlackElo "2105"]
[Annotator "TA"]
[PlyCount "157"]
[EventDate "2022.08.05"]
[EventType "swiss"]
[EventCountry "NED"]
[SourceTitle "playchess.com"]
[Source "ChessBase"]
[SourceQuality "1"]
[TimeControl "40/5400+30:1800+30"]

{[%evp 12,157,-10,-6,-3,-8,3,5,0,-17,0,0,0,-14,-30,-28,-25,-35,-28,-29,73,78,81,79,69,62,54,64,91,88,89,86,85,83,87,96,85,89,99,98,92,83,94,100,99,69,79,0,89,97,94,92,128,118,117,108,121,123,125,114,114,99,102,102,88,9,50,56,30,98,95,90,154,136,144,142,151,105,200,201,195,166,177,170,354,356,306,291,663,663,649,649,618,581,506,393,501,533,792,770,673,666,1701,1722,1881,1687,1487,1364,1185,350,350,346,346,354,354,350,350,350,350,350,350,29970,29970,29972,29972,29973,29972,29973,29973,29974,29974,29975,29975,29976,29974,29976,29976,29977,29978,29979,29980,29981,29983,29984,29984,29985,29985,29986]} 1. d4 {[%emt 0:01:01]} d5 {[%emt 0:00:07][%cal Bd7d5,Bd5c4][%mdl 32]} 2. c4 {[%emt 0:00:08]} e6 {[%emt 0:00:04]} 3. Nf3 {[%emt 0:00:30]} Nf6 {[%emt 0:00:07]} 4. Nc3 {[%emt 0:00:11]} c6 {[%emt 0:00:27]} 5. g3 {[%emt 0:01:38]} dxc4 {[%emt 0:01:20]} 6. Bg2 {[%emt 0:00:10]} b5 {[%emt 0:00:40]} 7. Ne5 {[%emt 0:01:17]} a6 {[%emt 0:00:32] E04: Open Catalan: 5 Nf3.} 8. O-O {[%emt 0:02:32]} Bb7 {[%emt 0:01:43]} 9. b3 $1 {[%emt 0:02:56] 9.b3 scores better than 9.a4.} cxb3 {[%emt 0:01:34] The position is equal.} 10. Qxb3 {[%emt 1:25:07]} Be7 {[%emt 0:10:39]} 11. Rd1 {[%emt 0:00:00]} O-O {[%emt 0:03:20]} 12. a4 {[%emt 0:00:00]} b4 {[%emt 0:28:45] [#]} 13. Ne4 $146 {[%emt 0:00:00]} ({Predecessor:} 13. a5 Nbd7 14. Nxd7 Qxd7 15. Na4 Rad8 16. Bf4 Nd5 17. Nc5 Qc8 18. Bd2 e5 19. e4 {1-0 (51) Sarana,A (2640)-Ponkratov,P (2627) Anapa 2021}) 13... Nxe4 {[%emt 0:08:40]} 14. Bxe4 {[%emt 0:00:00]} a5 {[%emt 0:00:10]} ({Of course not} 14... Nd7 15. Bxc6 (15. Nxc6 Bxc6 16. Bxc6 Rc8 $11) 15... Bxc6 16. Nxc6 $14) 15. Bf4 {[%emt 0:00:00]} Nd7 {[%emt 0:18:38]} (15... Bd6 $11 {keeps the balance.}) 16. Bxc6 $16 {[%emt 0:00:00] White is much more active.} ({Reject} 16. Nxc6 Bxc6 17. Bxc6 Rc8 $11) 16... Bxc6 {[%emt 0:01:30]} 17. Nxc6 {[%emt 0:00:00]} Qe8 {[%emt 0:00:04]} 18. e4 {[%emt 0:00:00]} Nf6 {[%emt 0:06:31][%csl LRc6,LRe4]} 19. Qc2 {[%emt 0:00:00]} b3 {[%emt 0:05:54]} 20. Nxe7+ {[%emt 0:00:00]} Qxe7 {[%emt 0:00:04]} 21. Qxb3 {[%emt 0:00:00]} Nxe4 {[%emt 0:00:17]} 22. Re1 $1 {[%emt 0:00:00]} Nf6 {[%emt 0:03:29][%cal Be4f6,Bf6d5,Bd5b4][%mdl 32]} 23. d5 $1 {[%emt 0:00:00]} Rfe8 {[%emt 0:03:20]} (23... Nxd5 $2 24. Qxd5 $1 {[%mdl 512]} Rfd8 25. Qe4 $18) 24. dxe6 {[%emt 0:00:00]} fxe6 {[%emt 0:00:05]} 25. Qb5 {[%emt 0:00:00]} Nd5 {[%emt 0:01:23]} 26. Be5 {[%emt 0:00:00]} Qb4 {[%emt 0:01:05]} 27. Rab1 {[%emt 0:00:00]} Qg4 {[%emt 0:01:51]} 28. Qc6 {[%emt 0:04:07]} Nb4 {[%emt 0:01:33]} 29. Qb5 {[%emt 0:02:09]} Nd5 {[%emt 0:00:13]} 30. Qb7 {[%emt 0:01:07]} Qg6 {[%emt 0:00:48]} 31. Rb5 {[%emt 0:01:56]} Qf7 {[%emt 0:00:29]} 32. Qxf7+ {[%emt 0:00:24]} Kxf7 {[%emt 0:00:04]} 33. Rc1 {[%emt 0:00:14]} Re7 {[%emt 0:00:45]} 34. Rcc5 {[%emt 0:01:17]} Rea7 {[%emt 0:00:13]} 35. Bd4 {[%emt 0:00:12]} Nc7 {[%emt 0:00:50]} 36. Rb6 {[%emt 0:01:00]} Nd5 {[%emt 0:00:34]} 37. Rd6 {[%emt 0:00:16]} Rb7 {[%emt 0:00:40]} 38. Rcc6 {[%emt 0:00:43]} (38. h4 $16) 38... Re8 {[%emt 0:00:21]} 39. Bc5 {[%emt 0:00:18]} (39. Be5 {looks sharper.} Rb1+ 40. Kg2 Re1 41. Bd4) 39... Rb1+ {[%emt 0:00:38]} 40. Kg2 {[%emt 0:00:06] Rd7+ is the strong threat.} Rb7 {[%emt 0:00:31] Inhibits Rd7+.} 41. Ra6 {[%emt 0:02:39]} Nc3 {[%emt 0:09:24]} (41... Rc8 $142) 42. Rd4 {[%emt 0:06:57]} Rc8 {[%emt 0:07:24]} 43. Rxa5 {[%emt 0:00:37]} Nd5 {[%emt 0:09:47]} 44. Rd3 {[%emt 0:04:46]} (44. Rg4 $142) 44... Ke8 {[%emt 0:01:18]} (44... g5 $16 45. Rd1 Rd7) 45. Rf3 {[%emt 0:01:25] Threatens to win with Rf8+.} Rf7 {[%emt 0:01:03] Inhibits Rf8+.} 46. Rxf7 {[%emt 0:00:44]} Kxf7 $18 {[%emt 0:00:06][%mdl 4096] Endgame KRB-KRN} 47. Bd4 {[%emt 0:00:39]} Rc7 {[%emt 0:01:27]} (47... g5 {keeps fighting.} 48. Kf3 Rc2) 48. Ra7 {[%emt 0:00:20]} Rxa7 {[%emt 0:00:54]} 49. Bxa7 {[%emt 0:00:07] KB-KN} Ke7 $2 {[%emt 0:00:29]} (49... e5 50. a5 Nb4) 50. Bd4 {[%emt 0:00:32]} g6 {[%emt 0:00:06]} 51. Kf3 {[%emt 0:00:32]} Kd6 {[%emt 0:00:24]} 52. Ke4 {[%emt 0:00:22] Against e5} Nb4 {[%emt 0:00:37]} 53. Bb2 {[%emt 0:02:14] Hoping for Ba3.} Nc6 {[%emt 0:00:15]} 54. Kf4 {[%emt 0:02:25]} Kd5 {[%emt 0:01:08]} 55. Kg5 {[%emt 0:04:28]} Ke4 {[%emt 0:00:22]} 56. Ba3 {[%emt 0:01:27]} Ne5 {[%emt 0:01:58]} 57. a5 {[%emt 0:00:47][%cal Ba4a5,Ba5a6][%mdl 32]} Kd5 {[%emt 0:00:15]} 58. a6 {[%emt 0:00:56] Black must now prevent a7.} Kc6 {[%emt 0:00:50]} 59. a7 {[%emt 0:00:46]} Kb7 {[%emt 0:00:06]} 60. Bc5 $2 {[%emt 0:00:16]} (60. h4 {Bc5 would kill now.} Kxa7 61. Kh6) 60... Nf3+ {[%emt 0:01:06]} 61. Kh6 {[%emt 0:00:20]} Nxh2 {[%emt 0:00:26]} 62. Kxh7 {[%emt 0:00:08]} g5 {[%emt 0:00:16]} 63. Kg6 {[%emt 0:00:12]} g4 {[%emt 0:00:18]} 64. Kf6 {[%emt 0:00:24]} Ka8 {[%emt 0:01:15]} 65. Kxe6 {[%emt 0:01:12]} Nf3 {[%emt 0:00:44]} 66. Kf5 $2 {[%emt 0:00:15]} (66. Be3 $18) 66... Nh2 {[%emt 0:00:06] White mates.} 67. Kg5 {[%emt 0:00:08]} Kb7 {[%emt 0:00:09]} 68. Kh4 {[%emt 0:00:06]} Ka8 {[%emt 0:00:58]} 69. Be3 {[%emt 0:04:44]} Kb7 {[%emt 0:00:10] [#]} 70. Bb6 $1 {[%emt 0:00:08][%mdl 512]} Ka8 {[%emt 0:00:05]} 71. f4 {[%emt 0:00:38]} gxf3 {[%emt 0:00:10]} 72. Kh3 {[%emt 0:00:06]} Nf1 {[%emt 0:00:29]} 73. g4 {[%emt 0:00:05][%cal Bg3g4,Bg4g5,Bg5g6][%mdl 32]} Nd2 {[%emt 0:00:28] [#]} 74. Kg3 $1 {[%emt 0:01:02]} Nc4 {[%emt 0:01:41]} 75. Bd4 {[%emt 0:01:06]} Nd2 {[%emt 0:01:10]} 76. Kf4 {[%emt 0:01:38]} Nc4 {[%emt 0:00:19]} 77. g5 {[%emt 0:00:20]} Nd6 {[%emt 0:00:21]} 78. g6 {[%emt 0:00:10]} Nc8 {[%emt 0:00:53]} 79. Kxf3 {[%emt 0:00:45] Weighted Error Value: White=0.25 (precise) /Black=0.25 (precise)} 1-0

[Event "24th Hoogeschool Zeeland 2022"]
[Site "Vlissingen"]
[Date "2022.08.08"]
[Round "4.9"]
[White "Baklan, Vladimir"]
[Black "Koffeman, Timo"]
[Result "1-0"]
[ECO "B45"]
[WhiteElo "2589"]
[BlackElo "2119"]
[Annotator "TA"]
[PlyCount "85"]
[EventDate "2022.08.05"]
[EventType "swiss"]
[EventCountry "NED"]
[SourceTitle "playchess.com"]
[Source "ChessBase"]
[SourceQuality "1"]
[TimeControl "40/5400+30:1800+30"]

{[%evp 13,85,14,26,23,28,0,26,22,18,31,27,29,26,18,25,31,31,31,17,33,20,15,46,46,50,52,83,51,48,42,41,37,38,39,78,50,97,109,116,113,119,109,161,141,186,225,281,227,251,100,101,104,100,91,134,135,141,94,126,59,258,172,183,225,300,289,475,455,527,517,502,465,500,489]} 1. e4 {[%emt 0:00:03]} c5 {[%emt 0:00:09]} 2. Nf3 {[%emt 0:00:04]} e6 {[%emt 0:00:13]} 3. d4 {[%emt 0:01:08]} cxd4 {[%emt 0:00:11]} 4. Nxd4 {[%emt 0:00:03]} Nf6 {[%emt 0:00:14]} 5. Nc3 {[%emt 0:00:07]} Nc6 {[%emt 0:00:13]} 6. g3 {[%emt 0:02:16]} Bb4 {[%emt 0:00:33]} 7. Bg2 {[%emt 0:00:18]} O-O {[%emt 0:00:36] is currently scoring better than 7...d5.} 8. O-O {[%emt 0:00:32] B45: Sicilian Four Knights.} d6 {[%emt 0:24:48]} 9. h3 $5 {[%emt 0:04:30][%mdl 4] Leaves trodden paths.} a6 {[%emt 0:07:47] [#]} 10. Nxc6 $146 {[%emt 0:01:11] White has an edge.} ({Predecessor:} 10. Nde2 Bc5 11. g4 Qc7 12. a4 b6 13. g5 Nd7 14. Nf4 Nde5 15. Nd3 Bb7 16. Nxc5 dxc5 {½-½ (23) Baklan,V (2656)-Krasenkow,M (2631) Koge 2014}) 10... bxc6 {[%emt 0:00:07]} 11. Na4 {[%emt 0:00:01]} d5 {[%emt 0:06:33]} 12. e5 {[%emt 0:00:24]} Nd7 {[%emt 0:01:09]} 13. Qg4 $1 {[%emt 0:00:05]} Qe7 {[%emt 0:03:24]} 14. a3 {[%emt 0:03:29] And now Bg5 would win.} Ba5 $1 {[%emt 0:01:30]} 15. Bg5 {[%emt 0:00:08]} f6 {[%emt 0:01:29]} 16. exf6 {[%emt 0:00:06]} Nxf6 {[%emt 0:00:18][%cal Oh7h6]} 17. Qe2 {[%emt 0:00:06]} e5 {[%emt 0:04:14]} 18. c4 {[%emt 0:01:29] aiming for cxd5.} e4 {[%emt 0:07:02]} 19. Rac1 {[%emt 0:00:54]} h6 {[%emt 0:09:29]} 20. Be3 {[%emt 0:02:38]} Bc7 {[%emt 0:04:36]} 21. cxd5 {[%emt 0:12:17]} cxd5 {[%emt 0:00:33]} 22. Nb6 {[%emt 0:00:18]} Bxb6 {[%emt 0:09:53]} 23. Bxb6 {[%emt 0:00:09] Black must now prevent Bc5.} Re8 {[%emt 0:01:05]} 24. Qe3 {[%emt 0:04:03]} a5 {[%emt 0:05:16]} (24... Bd7 $14) 25. Rc7 $16 {[%emt 0:01:54]} Qe6 {[%emt 0:02:01]} 26. Rfc1 {[%emt 0:02:02] R1c6 is the strong threat. White is much more active.} Bd7 {[%emt 0:00:49] Prevents R1c6.} 27. Bd4 {[%emt 0:01:01]} Rad8 {[%emt 0:01:16]} (27... Rf8 $16) 28. b3 {[%emt 0:08:54]} Qd6 {[%emt 0:01:37]} 29. a4 {[%emt 0:00:41]} Nh7 {[%emt 0:02:05]} 30. h4 {[%emt 0:12:20][%cal Oc1c6] Inhibits Ng5.} Nf8 {[%emt 0:00:09] [#]} 31. Bh3 {[%emt 0:04:34] This bishop pair is nice.} Ne6 {[%emt 0:03:07]} (31... Bxh3 {gets mated.} 32. Rxg7+ Kh8 33. Rg6+) 32. Bxe6+ $40 {[%emt 0:00:50][%mdl 128] White is out for blood.} Qxe6 {[%emt 0:00:30]} 33. Qc3 {[%emt 0:01:55]} Re7 {[%emt 0:02:01]} 34. Qxa5 {[%emt 0:00:47][%cal Oc7c6]} Rf8 {[%emt 0:00:08]} 35. Qb6 {[%emt 0:03:59]} (35. Qe1 $142) 35... Qg4 {[%emt 0:01:48][%cal Oe4e3] [#]} 36. Qd6 {[%emt 0:01:42]} (36. R7c3 $1 $16) 36... Ref7 $2 {[%emt 0:00:53] A mistake that costs the game.} ({Black should play} 36... Rff7 $14) 37. Qxd5 {[%emt 0:01:12]} Be6 {[%emt 0:00:24] [#]} 38. Qe5 {[%emt 0:01:41]} Bxb3 {[%emt 0:00:43]} 39. a5 {[%emt 0:01:15][%cal Ba4a5,Ba5a6][%mdl 32]} Qg6 {[%emt 0:00:31]} (39... e3 40. Bxe3 Rd8) 40. h5 $18 {[%emt 0:01:47] White is clearly winning.} Qg4 {[%emt 0:00:13]} 41. a6 {[%emt 0:33:48]} e3 {[%emt 0:05:07]} 42. Bxe3 {[%emt 0:00:00]} Rf5 {[%emt 0:02:16]} 43. Qd4 {[%emt 0:00:00] Weighted Error Value: White=0.15 (very precise) /Black=0.33} 1-0